[Event "Late-Titled-Tuesday-Blitz-May-28-2024"]
[Site "Chess.com"]
[Date "2024.05.28"]
[Round "6"]
[White "nabukatnezarr"]
[Black "ploxoi"]
[Result "1-0"]
[WhiteElo "2643"]
[BlackElo "2414"]
[TimeControl "180+1"]
[EndTime "15:06:11 PDT"]
[Termination "nabukatnezarr won by resignation"]

1. b3 {[%clk 0:03:00.9]} 1... e5 {[%clk 0:02:55]} 2. Bb2 {[%clk 0:03:01.8]} 2...
Nc6 {[%clk 0:02:54.9]} 3. e3 {[%clk 0:03:01.4]} 3... d5 {[%clk 0:02:54.1]} 4.
Bb5 {[%clk 0:03:01.2]} 4... Bd6 {[%clk 0:02:54.5]} 5. f4 {[%clk 0:02:59.5]} 5...
f6 {[%clk 0:02:54.4]} 6. fxe5 {[%clk 0:02:52]} 6... fxe5 {[%clk 0:02:53.2]} 7.
Nf3 {[%clk 0:02:52.5]} 7... Qe7 {[%clk 0:02:45]} 8. O-O {[%clk 0:02:51.4]} 8...
Nf6 {[%clk 0:02:44.8]} 9. c4 {[%clk 0:02:49.2]} 9... O-O {[%clk 0:02:32]} 10.
cxd5 {[%clk 0:02:41.7]} 10... Nxd5 {[%clk 0:02:32.2]} 11. Nc3 {[%clk 0:02:42.4]}
11... Nxc3 {[%clk 0:02:24.5]} 12. Bxc3 {[%clk 0:02:43.3]} 12... Bg4 {[%clk
0:02:21.8]} 13. Bxc6 {[%clk 0:02:38.8]} 13... bxc6 {[%clk 0:02:18.1]} 14. Qe1
{[%clk 0:02:31.2]} 14... c5 {[%clk 0:02:14.8]} 15. Qh4 {[%clk 0:02:12.1]} 15...
Qxh4 {[%clk 0:02:06.3]} 16. Nxh4 {[%clk 0:02:11.2]} 16... e4 {[%clk 0:02:02.4]}
17. g3 {[%clk 0:02:06.1]} 17... c4 {[%clk 0:01:48.3]} 18. bxc4 {[%clk
0:01:53.5]} 18... Be2 {[%clk 0:01:48.3]} 19. Rf5 {[%clk 0:01:37.3]} 19... Bxc4
{[%clk 0:01:38.4]} 20. Rg5 {[%clk 0:01:37.4]} 20... Rf7 {[%clk 0:01:33.4]} 21.
Nf5 {[%clk 0:01:36.4]} 21... Rd7 {[%clk 0:01:14.8]} 22. Nxg7 {[%clk 0:01:27.3]}
22... Be7 {[%clk 0:01:13.6]} 23. Rg4 {[%clk 0:01:18]} 23... Kf7 {[%clk
0:01:06.4]} 24. Rxe4 {[%clk 0:01:15.6]} 24... Bd3 {[%clk 0:01:06.6]} 25. Rf4+
{[%clk 0:01:14.4]} 25... Kg6 {[%clk 0:01:06.2]} 26. Ne6 {[%clk 0:01:10.7]} 26...
Bd6 {[%clk 0:01:02.8]} 27. Rf6+ {[%clk 0:01:10.9]} 27... Kh5 {[%clk 0:01:00.8]}
28. Nf4+ {[%clk 0:01:08.9]} 28... Bxf4 {[%clk 0:01:00.1]} 29. Rxf4 {[%clk
0:01:09.7]} 29... Kg5 {[%clk 0:00:54]} 30. h4+ {[%clk 0:01:07.7]} 30... Kg6
{[%clk 0:00:53.3]} 31. g4 {[%clk 0:01:08.5]} 31... Rd6 {[%clk 0:00:52.2]} 32.
Rc1 {[%clk 0:01:05.4]} 32... Re8 {[%clk 0:00:40.8]} 33. Bb4 {[%clk 0:00:54.1]}
33... Rd7 {[%clk 0:00:39.8]} 34. Rc6+ {[%clk 0:00:52.5]} 34... Kg7 {[%clk
0:00:33.5]} 35. Bc3+ {[%clk 0:00:52.6]} 35... Kg8 {[%clk 0:00:33]} 36. Kf2
{[%clk 0:00:45.5]} 36... Be4 {[%clk 0:00:30.4]} 37. Rc5 {[%clk 0:00:44.5]} 37...
Bg6 {[%clk 0:00:26.8]} 38. h5 {[%clk 0:00:44.2]} 38... Bb1 {[%clk 0:00:24.7]}
39. Rg5+ {[%clk 0:00:44.3]} 1-0

[Event "Late-Titled-Tuesday-Blitz-May-28-2024"]
[Site "Chess.com"]
[Date "2024.05.28"]
[Round "6"]
[White "Goryachkina"]
[Black "Rud_Makarian"]
[Result "0-1"]
[WhiteElo "2723"]
[BlackElo "2958"]
[TimeControl "180+1"]
[EndTime "15:06:12 PDT"]
[Termination "Rud_Makarian won by resignation"]

1. d4 {[%clk 0:02:59]} 1... Nf6 {[%clk 0:03:00]} 2. c4 {[%clk 0:02:58.8]} 2...
e6 {[%clk 0:03:00.2]} 3. Nf3 {[%clk 0:02:58.6]} 3... d5 {[%clk 0:03:00.8]} 4. g3
{[%clk 0:02:58.1]} 4... Bb4+ {[%clk 0:03:01]} 5. Bd2 {[%clk 0:02:57.3]} 5... Be7
{[%clk 0:03:00.8]} 6. Bg2 {[%clk 0:02:57]} 6... O-O {[%clk 0:03:01.6]} 7. O-O
{[%clk 0:02:56.8]} 7... Nbd7 {[%clk 0:03:02.3]} 8. Qc2 {[%clk 0:02:56.6]} 8...
c6 {[%clk 0:03:02.8]} 9. Bf4 {[%clk 0:02:54.2]} 9... a5 {[%clk 0:03:03.2]} 10.
Rd1 {[%clk 0:02:53.1]} 10... Nh5 {[%clk 0:03:03.2]} 11. Bc1 {[%clk 0:02:47.2]}
11... b5 {[%clk 0:03:03.5]} 12. c5 {[%clk 0:02:32.6]} 12... f5 {[%clk
0:03:03.1]} 13. Nbd2 {[%clk 0:02:17.4]} 13... Bf6 {[%clk 0:02:56.2]} 14. b3
{[%clk 0:02:07.8]} 14... e5 {[%clk 0:02:14.3]} 15. dxe5 {[%clk 0:01:59.5]} 15...
Nxe5 {[%clk 0:02:15.2]} 16. Nxe5 {[%clk 0:01:58.1]} 16... Bxe5 {[%clk
0:02:15.7]} 17. Bb2 {[%clk 0:01:50.7]} 17... Bxb2 {[%clk 0:02:15.6]} 18. Qxb2
{[%clk 0:01:50.8]} 18... Qe7 {[%clk 0:02:15.9]} 19. Nf3 {[%clk 0:01:32.2]} 19...
Bd7 {[%clk 0:02:14.4]} 20. Rac1 {[%clk 0:01:29.2]} 20... Rae8 {[%clk 0:02:13.4]}
21. Nd4 {[%clk 0:01:27.1]} 21... f4 {[%clk 0:02:09.3]} 22. Qd2 {[%clk
0:01:18.3]} 22... fxg3 {[%clk 0:02:02.6]} 23. hxg3 {[%clk 0:01:13.7]} 23... Nf6
{[%clk 0:02:01.4]} 24. f3 {[%clk 0:01:07]} 24... Nh5 {[%clk 0:01:53.3]} 25. g4
{[%clk 0:00:26.5]} 25... Nf4 {[%clk 0:01:48.5]} 26. Re1 {[%clk 0:00:25.5]} 26...
h5 {[%clk 0:00:37.6]} 27. e3 {[%clk 0:00:19.8]} 27... Nxg2 {[%clk 0:00:38.2]}
28. Qxg2 {[%clk 0:00:19.7]} 28... hxg4 {[%clk 0:00:39.1]} 29. f4 {[%clk
0:00:19.8]} 29... Rf6 {[%clk 0:00:36.1]} 30. Qg3 {[%clk 0:00:18.2]} 30... Rh6
{[%clk 0:00:36.3]} 31. Kf2 {[%clk 0:00:16.6]} 31... Rh3 {[%clk 0:00:36.2]} 0-1

[Event "Late-Titled-Tuesday-Blitz-May-28-2024"]
[Site "Chess.com"]
[Date "2024.05.28"]
[Round "6"]
[White "VirtualCoach"]
[Black "betta2004"]
[Result "0-1"]
[WhiteElo "2197"]
[BlackElo "2552"]
[TimeControl "180+1"]
[EndTime "15:06:16 PDT"]
[Termination "betta2004 won on time"]

1. d4 {[%clk 0:02:59.1]} 1... Nf6 {[%clk 0:02:47.2]} 2. c4 {[%clk 0:02:58]} 2...
e6 {[%clk 0:02:45.8]} 3. Nf3 {[%clk 0:02:56.9]} 3... d5 {[%clk 0:02:46.1]} 4.
Nc3 {[%clk 0:02:49.2]} 4... Be7 {[%clk 0:02:44.8]} 5. Bf4 {[%clk 0:02:42.4]}
5... O-O {[%clk 0:02:40.1]} 6. e3 {[%clk 0:02:41.7]} 6... dxc4 {[%clk
0:02:39.5]} 7. Bxc4 {[%clk 0:02:40.4]} 7... c5 {[%clk 0:02:38.9]} 8. dxc5 {[%clk
0:02:34.8]} 8... Bxc5 {[%clk 0:02:27.2]} 9. O-O {[%clk 0:02:31.4]} 9... a6
{[%clk 0:02:23.6]} 10. a4 {[%clk 0:02:19.3]} 10... Nc6 {[%clk 0:02:17.9]} 11. h3
{[%clk 0:02:02.1]} 11... Qe7 {[%clk 0:02:11.5]} 12. Qc2 {[%clk 0:01:58.6]} 12...
h6 {[%clk 0:02:03.3]} 13. Bh2 {[%clk 0:01:50.8]} 13... e5 {[%clk 0:02:01]} 14.
Nd5 {[%clk 0:01:46.9]} 14... Nxd5 {[%clk 0:02:00.3]} 15. Bxd5 {[%clk 0:01:45.6]}
15... Nb4 {[%clk 0:02:00.7]} 16. Qb3 {[%clk 0:01:31.3]} 16... e4 {[%clk
0:01:49.2]} 17. Nd2 {[%clk 0:01:25.9]} 17... Bf5 {[%clk 0:01:45]} 18. Rad1
{[%clk 0:01:14.2]} 18... Nxd5 {[%clk 0:01:40.9]} 19. Qxd5 {[%clk 0:01:12.7]}
19... Bg6 {[%clk 0:01:40.6]} 20. Qb3 {[%clk 0:01:06.5]} 20... Rfd8 {[%clk
0:01:39]} 21. Nc4 {[%clk 0:01:04.7]} 21... Rd3 {[%clk 0:01:34.5]} 22. Rxd3
{[%clk 0:01:00.3]} 22... exd3 {[%clk 0:01:35.4]} 23. Ne5 {[%clk 0:00:59]} 23...
Rd8 {[%clk 0:01:34.8]} 24. Rd1 {[%clk 0:00:53.5]} 24... Be4 {[%clk 0:01:19.5]}
25. Bg3 {[%clk 0:00:30.3]} 25... Bd6 {[%clk 0:01:12.1]} 26. Qc3 {[%clk
0:00:26.1]} 26... Bxe5 {[%clk 0:01:07.3]} 27. Bxe5 {[%clk 0:00:25]} 27... Qg5
{[%clk 0:01:04.8]} 28. Bg3 {[%clk 0:00:21.6]} 28... h5 {[%clk 0:01:04.3]} 29. h4
{[%clk 0:00:20]} 29... Qg4 {[%clk 0:01:04.3]} 30. Rd2 {[%clk 0:00:18.7]} 30...
Rc8 {[%clk 0:01:04.7]} 31. Qd4 {[%clk 0:00:14.5]} 31... Qh3 {[%clk 0:00:52.2]}
0-1

[Event "Late-Titled-Tuesday-Blitz-May-28-2024"]
[Site "Chess.com"]
[Date "2024.05.28"]
[Round "6"]
[White "NMChessToImpress"]
[Black "Orest_Vovk"]
[Result "0-1"]
[WhiteElo "2322"]
[BlackElo "2513"]
[TimeControl "180+1"]
[EndTime "15:06:17 PDT"]
[Termination "Orest_Vovk won on time"]

1. e4 {[%clk 0:02:56.5]} 1... g5 {[%clk 0:02:59.7]} 2. d4 {[%clk 0:02:55.9]}
2... g4 {[%clk 0:02:59.9]} 3. Nc3 {[%clk 0:02:51.9]} 3... Bg7 {[%clk 0:02:59.7]}
4. Be3 {[%clk 0:02:49.5]} 4... h5 {[%clk 0:02:58.9]} 5. h3 {[%clk 0:02:49]} 5...
d6 {[%clk 0:02:59.4]} 6. hxg4 {[%clk 0:02:46.3]} 6... hxg4 {[%clk 0:03:00.1]} 7.
Rxh8 {[%clk 0:02:44.3]} 7... Bxh8 {[%clk 0:03:01]} 8. Be2 {[%clk 0:02:44.6]}
8... Nf6 {[%clk 0:03:00]} 9. e5 {[%clk 0:02:35.1]} 9... Nfd7 {[%clk 0:02:17.9]}
10. e6 {[%clk 0:02:24.5]} 10... fxe6 {[%clk 0:02:05.7]} 11. Bxg4 {[%clk
0:02:23.9]} 11... Nf6 {[%clk 0:02:05.7]} 12. Bh3 {[%clk 0:02:02.9]} 12... Nc6
{[%clk 0:02:02.2]} 13. Nf3 {[%clk 0:02:02.6]} 13... e5 {[%clk 0:01:57]} 14. dxe5
{[%clk 0:01:48.1]} 14... Bxh3 {[%clk 0:01:49.5]} 15. exf6 {[%clk 0:01:45.2]}
15... Bxg2 {[%clk 0:01:39.4]} 16. Nh4 {[%clk 0:01:33.8]} 16... Bh3 {[%clk
0:01:22.7]} 17. f7+ {[%clk 0:01:06.8]} 17... Kd7 {[%clk 0:01:13.5]} 18. Ng6
{[%clk 0:00:58.8]} 18... Bg7 {[%clk 0:01:08.2]} 19. Qh5 {[%clk 0:00:50.4]} 19...
Be6 {[%clk 0:01:03.2]} 20. Nf4 {[%clk 0:00:48.5]} 20... Qh8 {[%clk 0:00:51.6]}
21. Qg6 {[%clk 0:00:12.9]} 21... Bxc3+ {[%clk 0:00:38.8]} 22. Ke2 {[%clk
0:00:08.2]} 22... Bc4+ {[%clk 0:00:32.3]} 23. Kf3 {[%clk 0:00:07.6]} 23... Bxb2
{[%clk 0:00:24.9]} 24. Re1 {[%clk 0:00:03]} 24... Ne5+ {[%clk 0:00:24.9]} 0-1

[Event "Late-Titled-Tuesday-Blitz-May-28-2024"]
[Site "Chess.com"]
[Date "2024.05.28"]
[Round "6"]
[White "Nathan_Filgueiras"]
[Black "Alina_Gumerovna"]
[Result "1-0"]
[WhiteElo "2537"]
[BlackElo "2180"]
[TimeControl "180+1"]
[EndTime "15:06:24 PDT"]
[Termination "Nathan_Filgueiras won on time"]

1. e4 {[%clk 0:03:00.9]} 1... e5 {[%clk 0:02:59.7]} 2. Nf3 {[%clk 0:02:57.8]}
2... Nf6 {[%clk 0:03:00.2]} 3. Bc4 {[%clk 0:02:58.3]} 3... Nxe4 {[%clk 0:02:54]}
4. Nc3 {[%clk 0:02:58.3]} 4... Nd6 {[%clk 0:02:46.1]} 5. Bb3 {[%clk 0:02:50.3]}
5... Nc6 {[%clk 0:02:45.4]} 6. O-O {[%clk 0:02:48.8]} 6... Be7 {[%clk 0:02:41]}
7. Re1 {[%clk 0:02:48]} 7... O-O {[%clk 0:02:39.1]} 8. Nxe5 {[%clk 0:02:48.2]}
8... Nxe5 {[%clk 0:02:39.1]} 9. Rxe5 {[%clk 0:02:49.1]} 9... Bf6 {[%clk
0:02:39.4]} 10. Re1 {[%clk 0:02:47.2]} 10... Nf5 {[%clk 0:02:33.3]} 11. d3
{[%clk 0:02:47.4]} 11... c6 {[%clk 0:02:22.6]} 12. Ne4 {[%clk 0:02:37]} 12... d5
{[%clk 0:02:20]} 13. Nxf6+ {[%clk 0:02:37.2]} 13... Qxf6 {[%clk 0:02:20.9]} 14.
Qf3 {[%clk 0:02:38]} 14... Qg6 {[%clk 0:02:11.7]} 15. c3 {[%clk 0:02:31.4]}
15... Be6 {[%clk 0:01:51.6]} 16. Bf4 {[%clk 0:02:30.9]} 16... d4 {[%clk
0:01:36.4]} 17. Bxe6 {[%clk 0:02:09.1]} 17... fxe6 {[%clk 0:01:37.3]} 18. Qe4
{[%clk 0:02:09.9]} 18... Rae8 {[%clk 0:00:50.6]} 19. c4 {[%clk 0:02:09]} 19...
Qg4 {[%clk 0:00:38.9]} 20. Bg3 {[%clk 0:02:06.2]} 20... Qg5 {[%clk 0:00:31.8]}
21. Re2 {[%clk 0:01:54.2]} 21... h5 {[%clk 0:00:26.5]} 22. Rae1 {[%clk
0:01:47.7]} 22... h4 {[%clk 0:00:24.3]} 23. Bf4 {[%clk 0:01:47.3]} 23... Qg6
{[%clk 0:00:18.1]} 24. h3 {[%clk 0:01:47.5]} 24... Qh5 {[%clk 0:00:17]} 25. Be5
{[%clk 0:01:44]} 25... Rd8 {[%clk 0:00:11.2]} 26. Qg4 {[%clk 0:01:40]} 26...
Qxg4 {[%clk 0:00:07.2]} 27. hxg4 {[%clk 0:01:40.9]} 27... Nh6 {[%clk 0:00:08.1]}
28. f3 {[%clk 0:01:41.1]} 28... Rfe8 {[%clk 0:00:07.3]} 29. c5 {[%clk
0:01:38.5]} 29... Kf7 {[%clk 0:00:06.8]} 30. Re4 {[%clk 0:01:37.4]} 30... Rd5
{[%clk 0:00:05.8]} 31. b4 {[%clk 0:01:34]} 31... Red8 {[%clk 0:00:05]} 32. Bd6
{[%clk 0:01:28.1]} 32... R8xd6 {[%clk 0:00:05.3]} 33. cxd6 {[%clk 0:01:28]}
33... Rxd6 {[%clk 0:00:06.2]} 34. Kh2 {[%clk 0:01:23.8]} 34... g5 {[%clk
0:00:04.4]} 35. Re5 {[%clk 0:01:23.1]} 35... Kf6 {[%clk 0:00:02.9]} 36. R5e4
{[%clk 0:01:13.6]} 36... Nf7 {[%clk 0:00:03.4]} 37. f4 {[%clk 0:01:12.9]} 37...
gxf4 {[%clk 0:00:03.1]} 38. Rxf4+ {[%clk 0:01:13.8]} 38... Kg6 {[%clk
0:00:03.6]} 39. Ree4 {[%clk 0:01:08.6]} 39... e5 {[%clk 0:00:02.7]} 40. Rf5
{[%clk 0:01:08.4]} 40... Ng5 {[%clk 0:00:02.2]} 41. Rexe5 {[%clk 0:01:07.9]}
41... Nf7 {[%clk 0:00:02.3]} 42. Re7 {[%clk 0:01:04.7]} 1-0

[Event "Late-Titled-Tuesday-Blitz-May-28-2024"]
[Site "Chess.com"]
[Date "2024.05.28"]
[Round "6"]
[White "wild3000"]
[Black "dennisodessa"]
[Result "0-1"]
[WhiteElo "2385"]
[BlackElo "2557"]
[TimeControl "180+1"]
[EndTime "15:06:25 PDT"]
[Termination "dennisodessa won by resignation"]

1. d4 {[%clk 0:02:59.3]} 1... e6 {[%clk 0:02:57.9]} 2. Nf3 {[%clk 0:02:59.1]}
2... Nf6 {[%clk 0:02:58.3]} 3. g3 {[%clk 0:02:59.1]} 3... c5 {[%clk 0:02:58.9]}
4. Bg2 {[%clk 0:02:58.7]} 4... b6 {[%clk 0:02:59.4]} 5. c4 {[%clk 0:02:53.6]}
5... Bb7 {[%clk 0:02:58]} 6. d5 {[%clk 0:02:52.4]} 6... exd5 {[%clk 0:02:58.7]}
7. cxd5 {[%clk 0:02:53.3]} 7... Bxd5 {[%clk 0:02:56.6]} 8. Nc3 {[%clk
0:02:52.2]} 8... Bb7 {[%clk 0:02:56.1]} 9. O-O {[%clk 0:02:48]} 9... Be7 {[%clk
0:02:56]} 10. e4 {[%clk 0:02:44.1]} 10... Nxe4 {[%clk 0:02:48]} 11. Nxe4 {[%clk
0:02:39.3]} 11... Bxe4 {[%clk 0:02:48.9]} 12. Re1 {[%clk 0:02:28.7]} 12... d5
{[%clk 0:02:48.9]} 13. Bf1 {[%clk 0:02:15.9]} 13... O-O {[%clk 0:02:48.1]} 14.
Nd2 {[%clk 0:02:16.1]} 14... Bg6 {[%clk 0:02:38.2]} 15. h4 {[%clk 0:02:11.9]}
15... Nc6 {[%clk 0:02:32.6]} 16. h5 {[%clk 0:02:11.6]} 16... Bf5 {[%clk
0:02:32.9]} 17. h6 {[%clk 0:02:09]} 17... g6 {[%clk 0:02:28.3]} 18. Nf3 {[%clk
0:02:06.7]} 18... Bf6 {[%clk 0:02:22.7]} 19. Bg2 {[%clk 0:01:58.2]} 19... Qd7
{[%clk 0:02:12.6]} 20. Bg5 {[%clk 0:01:48.5]} 20... Bxb2 {[%clk 0:02:12.3]} 21.
Nh4 {[%clk 0:01:43]} 21... Be6 {[%clk 0:02:08.1]} 22. Rb1 {[%clk 0:01:33]} 22...
Bh8 {[%clk 0:02:07.6]} 23. Qf3 {[%clk 0:01:22.9]} 23... Nd4 {[%clk 0:01:57.4]}
24. Qd1 {[%clk 0:01:21.6]} 24... Rfe8 {[%clk 0:01:55.4]} 25. Nf3 {[%clk
0:01:10.9]} 25... Bg4 {[%clk 0:01:46]} 26. Qd3 {[%clk 0:01:10.3]} 26... Nxf3+
{[%clk 0:01:38.5]} 27. Bxf3 {[%clk 0:01:10.5]} 27... Bxf3 {[%clk 0:01:39.4]} 28.
Qxf3 {[%clk 0:01:11.3]} 28... Qf5 {[%clk 0:01:40]} 29. Bf4 {[%clk 0:00:57.5]}
29... g5 {[%clk 0:01:39.6]} 30. Qh5 {[%clk 0:00:57.5]} 30... Qg6 {[%clk
0:01:18.5]} 31. Qxg5 {[%clk 0:00:55.7]} 31... Qxg5 {[%clk 0:01:18.2]} 32. Bxg5
{[%clk 0:00:56.6]} 32... f6 {[%clk 0:01:03.3]} 33. Bf4 {[%clk 0:00:53.6]} 33...
Kf7 {[%clk 0:01:03.5]} 34. g4 {[%clk 0:00:49.1]} 34... Kg6 {[%clk 0:01:03.7]}
35. Kg2 {[%clk 0:00:48.5]} 35... f5 {[%clk 0:01:03.9]} 36. f3 {[%clk 0:00:47.6]}
36... Bc3 {[%clk 0:01:02.5]} 37. Rh1 {[%clk 0:00:44.2]} 37... fxg4 {[%clk
0:00:57.1]} 38. fxg4 {[%clk 0:00:44]} 38... Re4 {[%clk 0:00:57.2]} 39. Rbf1
{[%clk 0:00:41]} 39... Rf8 {[%clk 0:00:52.4]} 40. Bc1 {[%clk 0:00:36.8]} 40...
Re2+ {[%clk 0:00:51.2]} 41. Kg3 {[%clk 0:00:30.6]} 41... Be5+ {[%clk 0:00:45.9]}
42. Kh4 {[%clk 0:00:30.7]} 42... Rxf1 {[%clk 0:00:44.3]} 0-1

[Event "Late-Titled-Tuesday-Blitz-May-28-2024"]
[Site "Chess.com"]
[Date "2024.05.28"]
[Round "6"]
[White "Chaubunagungamaug1"]
[Black "olawsson"]
[Result "1-0"]
[WhiteElo "2459"]
[BlackElo "2163"]
[TimeControl "180+1"]
[EndTime "15:06:26 PDT"]
[Termination "Chaubunagungamaug1 won on time"]

1. d4 {[%clk 0:03:00.9]} 1... d6 {[%clk 0:02:59.5]} 2. Nf3 {[%clk 0:02:58.6]}
2... g6 {[%clk 0:02:55.9]} 3. c4 {[%clk 0:02:56.6]} 3... Bg7 {[%clk 0:02:55.7]}
4. Nc3 {[%clk 0:02:56.5]} 4... Nc6 {[%clk 0:02:56.2]} 5. Bg5 {[%clk 0:02:52.8]}
5... h6 {[%clk 0:02:47.3]} 6. Bh4 {[%clk 0:02:52.2]} 6... g5 {[%clk 0:02:45.8]}
7. Bg3 {[%clk 0:02:52.1]} 7... g4 {[%clk 0:02:46.1]} 8. d5 {[%clk 0:02:37.5]}
8... gxf3 {[%clk 0:02:34.5]} 9. dxc6 {[%clk 0:02:37.5]} 9... fxe2 {[%clk
0:01:48.3]} 10. Bxe2 {[%clk 0:02:32.8]} 10... bxc6 {[%clk 0:01:47.9]} 11. Bf3
{[%clk 0:02:32.1]} 11... Bd7 {[%clk 0:01:25.8]} 12. O-O {[%clk 0:02:25.6]} 12...
Rb8 {[%clk 0:01:21.2]} 13. Rb1 {[%clk 0:02:16.6]} 13... Bxc3 {[%clk 0:00:48.7]}
14. bxc3 {[%clk 0:02:15.4]} 14... Rxb1 {[%clk 0:00:49.6]} 15. Qxb1 {[%clk
0:02:15.3]} 15... e5 {[%clk 0:00:47.1]} 16. Qb7 {[%clk 0:02:09.6]} 16... f5
{[%clk 0:00:40.7]} 17. Bxc6 {[%clk 0:02:08.2]} 17... f4 {[%clk 0:00:37.5]} 18.
Bh4 {[%clk 0:01:13]} 18... Qxh4 {[%clk 0:00:25]} 19. Qc8+ {[%clk 0:01:12.8]}
19... Qd8 {[%clk 0:00:20.7]} 20. Bxd7+ {[%clk 0:01:13.1]} 20... Ke7 {[%clk
0:00:21.1]} 21. Qxd8+ {[%clk 0:01:12.6]} 21... Kxd8 {[%clk 0:00:20.6]} 22. Bc6
{[%clk 0:01:11]} 22... Ne7 {[%clk 0:00:19.7]} 23. Be4 {[%clk 0:01:10.9]} 23...
c6 {[%clk 0:00:16.7]} 24. Bf3 {[%clk 0:00:52.7]} 24... Kc7 {[%clk 0:00:15.5]}
25. Rd1 {[%clk 0:00:51.3]} 25... Rb8 {[%clk 0:00:13.5]} 26. Rd2 {[%clk
0:00:23.5]} 26... Rb1+ {[%clk 0:00:03.9]} 27. Bd1 {[%clk 0:00:24.1]} 27... e4
{[%clk 0:00:01]} 28. Kf1 {[%clk 0:00:21.7]} 1-0

[Event "Late-Titled-Tuesday-Blitz-May-28-2024"]
[Site "Chess.com"]
[Date "2024.05.28"]
[Round "6"]
[White "gamboajp"]
[Black "LUISMIGUELOV"]
[Result "1-0"]
[WhiteElo "2042"]
[BlackElo "2221"]
[TimeControl "180+1"]
[EndTime "15:06:28 PDT"]
[Termination "gamboajp won on time"]

1. c4 {[%clk 0:02:59]} 1... d6 {[%clk 0:02:44]} 2. Nc3 {[%clk 0:02:57.6]} 2...
e5 {[%clk 0:02:43.8]} 3. g3 {[%clk 0:02:56.8]} 3... g6 {[%clk 0:02:43.8]} 4. Bg2
{[%clk 0:02:55.7]} 4... Bg7 {[%clk 0:02:43.8]} 5. e4 {[%clk 0:02:56.1]} 5... c6
{[%clk 0:02:43.4]} 6. Nge2 {[%clk 0:02:56.6]} 6... Ne7 {[%clk 0:02:42.8]} 7. d3
{[%clk 0:02:56.9]} 7... O-O {[%clk 0:02:42.4]} 8. h3 {[%clk 0:02:57.3]} 8... a6
{[%clk 0:02:41.9]} 9. Be3 {[%clk 0:02:57.1]} 9... b5 {[%clk 0:02:41.9]} 10. Qd2
{[%clk 0:02:52.4]} 10... b4 {[%clk 0:02:38.8]} 11. Nd1 {[%clk 0:02:52.3]} 11...
a5 {[%clk 0:02:38.9]} 12. O-O {[%clk 0:02:50.8]} 12... Na6 {[%clk 0:02:35.9]}
13. f4 {[%clk 0:02:46.3]} 13... c5 {[%clk 0:02:17.5]} 14. f5 {[%clk 0:02:30]}
14... Nc6 {[%clk 0:02:17.1]} 15. g4 {[%clk 0:02:25.7]} 15... Nd4 {[%clk
0:02:16.7]} 16. Nxd4 {[%clk 0:02:22]} 16... cxd4 {[%clk 0:02:16]} 17. Bh6 {[%clk
0:02:22.4]} 17... f6 {[%clk 0:02:09.9]} 18. Nf2 {[%clk 0:01:55.9]} 18... g5
{[%clk 0:02:09.2]} 19. Bxg7 {[%clk 0:01:55.2]} 19... Kxg7 {[%clk 0:02:09.4]} 20.
Nh1 {[%clk 0:01:52.6]} 20... Nc5 {[%clk 0:02:09.1]} 21. Ng3 {[%clk 0:01:51.5]}
21... Bd7 {[%clk 0:02:02.9]} 22. Nh5+ {[%clk 0:01:51.5]} 22... Kh8 {[%clk
0:02:00]} 23. h4 {[%clk 0:01:44.2]} 23... h6 {[%clk 0:01:58.1]} 24. hxg5 {[%clk
0:01:43.6]} 24... hxg5 {[%clk 0:01:58]} 25. Rf3 {[%clk 0:01:41.7]} 25... Rf7
{[%clk 0:01:58]} 26. Rh3 {[%clk 0:01:41.8]} 26... Rh7 {[%clk 0:01:57.8]} 27. Kf2
{[%clk 0:01:41.9]} 27... Be8 {[%clk 0:01:55.1]} 28. Rah1 {[%clk 0:01:41.9]}
28... Bxh5 {[%clk 0:01:54.7]} 29. Rxh5 {[%clk 0:01:42.1]} 29... Rxh5 {[%clk
0:01:52.9]} 30. Rxh5+ {[%clk 0:01:41.5]} 30... Kg7 {[%clk 0:01:52.6]} 31. Bf1
{[%clk 0:01:42]} 31... Qg8 {[%clk 0:01:32.7]} 32. Kf3 {[%clk 0:01:40.1]} 32...
Rf8 {[%clk 0:01:27.9]} 33. Qh2 {[%clk 0:01:39.5]} 33... a4 {[%clk 0:01:20.7]}
34. Rh6 {[%clk 0:01:37.5]} 34... Kf7 {[%clk 0:01:14]} 35. Rh7+ {[%clk
0:01:30.8]} 35... Ke8 {[%clk 0:01:12.9]} 36. Ra7 {[%clk 0:01:27]} 36... b3
{[%clk 0:00:34.9]} 37. a3 {[%clk 0:01:23.2]} 37... Kd8 {[%clk 0:00:14.9]} 38.
Qh6 {[%clk 0:01:22]} 38... d5 {[%clk 0:00:05.3]} 39. cxd5 {[%clk 0:01:10.8]}
39... Nd7 {[%clk 0:00:02.4]} 40. Rxa4 {[%clk 0:00:59.6]} 40... Kc7 {[%clk
0:00:01.3]} 41. Rc4+ {[%clk 0:00:54.7]} 1-0